bitfinex-derivatives/quotes_SOLF0:USTF0_20250829
["timestamp","ask_amount","ask_price","bid_price","bid_amount"]
[1756459934525,7.91,207.08,206.99,4.02144932]
[1756459934923,7.91,207.2,207.0,11.57144932]
[1756459935126,124.24,207.19,207.07,11.57144932]
[1756459935322,7.91,207.18,207.07,11.57144932]
[1756459935523,0.03063903,207.12,207.07,11.57144932]
[1756459935829,0.03063903,207.12,207.07,4.02144932]
[1756459936030,0.03063903,207.12,207.08,7.55]
[1756459937229,0.03063903,207.12,207.05,4.02144932]
[1756459937734,7.91,207.13,207.05,4.02144932]
[1756459937923,0.03593948,207.11,207.05,4.02144932]
[1756459938127,0.03593948,207.11,207.03,4.02144932]
[1756459939429,0.03593948,207.11,207.04,4.02144932]
[1756459939633,0.03593948,207.11,207.03,4.02144932]
[1756459940132,11.9750806,207.11,207.03,4.02144932]
[1756459940430,7.91,207.06,207.01,4.02144932]
[1756459940629,11.93914112,207.03,207.0,4.02144932]
[1756459940828,11.93914112,207.03,206.98,4.02144932]
[1756459941035,7.91,207.01,206.97,4.02144932]
[1756459941228,7.91,207.01,206.95,4.02144932]
[1756459941627,7.91,207.01,206.96,4.02144932]
[1756459941828,7.91,207.01,206.95,4.02144932]
[1756459942632,0.03683994,207.0,206.95,11.57144932]
[1756459943228,0.03683994,207.0,206.96,7.55]
[1756459944032,0.03683994,207.0,206.94,4.02144932]
[1756459944638,0.03683994,207.0,206.93,4.02144932]
[1756459944835,11.97598106,207.0,206.92,11.57144932]
[1756459945028,11.97598106,207.0,206.91,4.02144932]
[1756459945228,11.93914112,206.92,206.88,4.02144932]
[1756459945436,7.91,206.91,206.87,4.02144932]
[1756459945637,7.91,206.91,206.86,4.02144932]
[1756459945833,7.91,206.91,206.84,4.02144932]
[1756459946034,7.94420075,206.91,206.83,4.02144932]
[1756459946535,7.94420075,206.91,206.84,4.02144932]
[1756459947338,7.94420075,206.91,206.83,4.02144932]
[1756459947538,7.94420075,206.91,206.82,11.57144932]
[1756459948434,7.94420075,206.91,206.82,7.55]
[1756459949537,11.93914112,206.88,206.78,7.55]
[1756459950130,7.91,206.87,206.78,7.55]
[1756459950330,0.03347163,206.85,206.78,7.55]
[1756459951539,0.03347163,206.85,206.77,4.02247524]
[1756459951540,0.03347163,206.85,206.8,11.57247524]
[1756459951736,0.03347163,206.85,206.81,7.55]
[1756459951936,0.03347163,206.85,206.8,4.02247524]
[1756459952540,0.03347163,206.85,206.79,7.55]
[1756459953144,0.03347163,206.85,206.79,11.57247524]
[1756459953441,0.03347163,206.85,206.79,4.02247524]
[1756459953639,0.03347163,206.85,206.79,7.55]
[1756459954540,7.91,206.96,206.79,7.55]
[1756459954736,7.91,206.96,206.84,7.55]
[1756459955342,7.91,207.01,206.84,11.57247524]
[1756459955543,7.91,207.01,206.88,7.55]
[1756459955741,7.91,207.01,206.89,7.55]
[1756459955944,11.93914112,207.0,206.9,0.03368423]
[1756459956741,7.56,206.99,206.9,0.03368423]
[1756459962652,113.48,207.03,206.9,0.03368423]
[1756459962945,7.56,207.03,206.91,7.21]
[1756459963344,7.56,207.03,206.95,0.03279165]
[1756459964250,11.93914112,207.0,206.95,0.03279165]
[1756459964450,7.56,206.99,206.95,0.03279165]
[1756459964649,11.93914112,207.0,206.95,0.03279165]
[1756459964846,7.56,206.99,206.95,0.03279165]
[1756459965050,11.93914112,207.0,206.95,0.03279165]
[1756459965456,7.56,206.99,206.95,0.03279165]
[1756459966946,7.56,207.04,206.95,0.03279165]
[1756459967151,131.7,207.04,206.95,0.03279165]
[1756459967548,7.56,207.04,206.95,0.03279165]
[1756459968556,324.5,207.07,206.96,11.22009885]
[1756459968751,7.56,207.06,206.96,11.22009885]
[1756459968950,7.56,207.06,206.96,7.21]
[1756459969455,7.56,207.06,206.99,0.03704483]
[1756459970952,19.49914112,207.06,206.99,0.03704483]
[1756459972654,11.93914112,207.02,206.99,0.03704483]
[1756459972861,7.56,207.0,206.99,0.03704483]
[1756459973867,131.64,207.0,206.91,11.22009885]
[1756459975164,0.03636037,206.98,206.91,11.22009885]
[1756459975351,0.03636037,206.98,206.92,4.01009885]
[1756459975951,0.03636037,206.98,206.91,11.22009885]
[1756459976264,0.03636037,206.98,206.92,4.01009885]
[1756459977159,0.03636037,206.98,206.93,4.01009885]
[1756459977368,0.03636037,206.98,206.94,7.21]
[1756459977556,7.56,207.05,206.97,11.22009885]
[1756459977755,448.56,207.07,206.98,4.01009885]
[1756459978463,0.03451244,207.05,206.98,4.01009885]
[1756459978864,7.59451244,207.05,206.95,4.01009885]
[1756459979064,7.59451244,207.05,206.96,4.01009885]
[1756459979462,7.59451244,207.05,206.97,4.01009885]
[1756459980465,7.59451244,207.05,206.99,4.01009885]
[1756459980868,7.59451244,207.05,206.98,4.01009885]
[1756459981061,0.03451244,207.05,206.99,7.21]
[1756459981364,0.03451244,207.05,207.02,4.01009885]
[1756459981562,0.03451244,207.05,207.03,7.21]
[1756459981763,0.03451244,207.05,207.03,11.22009885]
[1756459981962,0.03451244,207.05,207.04,7.21]
[1756459982467,0.03451244,207.05,207.04,11.22009885]
[1756459982667,0.03451244,207.05,207.04,11.70009885]
[1756459982864,0.03451244,207.05,207.04,7.69]
[1756459983064,0.03451244,207.05,207.04,7.21]
[1756459983769,53.16,207.16,207.04,7.69]
[1756459984064,53.16,207.16,207.07,4.03839108]
[1756459984666,53.16,207.16,207.08,11.24839108]
[1756459984869,324.62,207.19,207.09,4.03839108]
[1756459985066,124.0,207.18,207.09,4.03839108]
[1756459985267,7.56,207.17,207.09,4.03839108]
[1756459985467,124.0,207.18,207.12,0.03068508]
[1756459985771,131.56,207.18,207.12,0.03068508]
[1756459987071,7.56,207.18,207.12,0.03068508]
[1756459987269,131.54,207.18,207.12,0.03068508]
[1756459987470,123.96,207.21,207.12,0.03068508]
[1756459988170,123.96,207.21,207.12,4.06907616]
[1756459988572,123.96,207.21,207.13,11.67839108]
[1756459989475,7.86,207.22,207.13,7.64]
[1756459990771,7.86,207.22,207.12,0.03068508]
[1756459993473,11.93914112,207.19,207.12,0.03068508]
[1756459993676,7.86,207.18,207.12,0.03068508]
[1756460007294,7.1801254,207.17,207.12,0.03068508]
[1756460007589,7.86,207.16,207.12,0.03068508]
[1756460007790,7.1801254,207.17,207.12,0.03068508]
[1756460007988,7.86,207.16,207.12,0.03068508]
[1756460008186,7.1801254,207.17,207.12,0.03068508]
[1756460008689,7.86,207.16,207.12,0.03068508]
[1756460008988,15.0401254,207.19,207.12,0.03068508]
[1756460009992,7.1801254,207.13,207.12,0.03068508]
[1756460010292,15.0401254,207.13,207.12,0.03068508]
[1756460011393,7.86,207.13,207.12,0.03068508]
[1756460011695,7.86,207.13,207.04,11.65912637]
[1756460012386,11.97142724,207.12,207.04,4.01912637]
[1756460012594,7.86,207.11,207.01,4.01912637]
[1756460012791,7.86,207.07,207.0,4.01912637]
[1756460013294,7.86,207.07,206.99,4.01912637]
[1756460013794,0.03554572,207.06,206.99,4.01912637]
[1756460014290,7.86,207.05,206.98,4.01912637]
[1756460015993,7.86,207.05,206.96,5.38458314]
[1756460015994,7.86,207.05,206.99,4.01912637]
[1756460017290,7.86,207.05,206.98,4.01912637]
[1756460018396,7.86,207.05,206.99,4.01912637]
[1756460018998,0.03554572,207.06,207.0,7.71]
[1756460019297,0.03554572,207.06,207.05,11.72912637]
[1756460019693,0.03554572,207.06,207.05,11.74696868]
[1756460020299,0.03554572,207.06,207.05,7.71]
[1756460020793,7.44,207.05,207.04,4.03942434]
[1756460020998,0.03554572,207.06,207.03,4.03942434]
[1756460021299,19.41142724,207.09,207.02,11.74942434]
[1756460021498,0.03467868,207.07,207.02,11.74942434]
[1756460021794,7.47467868,207.07,207.02,11.74942434]
[1756460022502,7.47467868,207.07,207.03,11.74942434]
[1756460022699,0.03467868,207.07,207.03,11.74942434]
[1756460023194,0.03467868,207.07,206.92,10.77713063]
[1756460023195,0.03467868,207.07,207.05,11.74942434]
[1756460023598,87.35142724,207.11,207.05,11.74942434]
[1756460023997,0.03184366,207.08,207.05,4.03942434]
[1756460024300,7.47184366,207.08,207.05,4.03942434]
[1756460025495,0.03184366,207.08,207.05,4.03942434]
[1756460025695,0.03184366,207.08,206.91,16.80142724]
[1756460025696,0.03184366,207.08,207.07,11.74942434]
[1756460026094,7.44,207.13,207.07,11.74942434]
[1756460026296,7.44,207.13,207.08,4.03942434]
[1756460026495,0.03301421,207.1,207.08,4.03942434]
[1756460026699,0.03301421,207.1,207.08,11.74942434]
[1756460030203,0.03301421,207.1,207.08,7.71]
[1756460030404,0.03301421,207.1,207.08,4.03942434]
[1756460030702,0.03301421,207.1,207.09,7.71]
[1756460034303,0.03301421,207.1,207.09,11.74942434]
[1756460034702,7.44,207.09,207.07,4.03942434]
[1756460034901,130.76272833,207.08,207.04,4.03942434]
[1756460035096,7.18272833,207.05,207.03,4.03942434]
[1756460035303,14.62272833,207.05,207.04,4.03942434]
[1756460036902,7.18272833,207.05,207.04,4.03942434]
[1756460037506,0.0309734,207.08,207.04,4.03942434]
[1756460037703,0.0309734,207.08,207.06,7.71]
[1756460038106,49.66,207.1,207.06,7.71]
[1756460038309,49.66,207.1,207.06,11.74942434]
[1756460038514,0.03285411,207.09,207.07,4.03942434]
[1756460039209,0.03285411,207.09,207.08,7.71]
[1756460039505,0.03285411,207.09,207.08,11.74942434]
[1756460040113,0.03285411,207.09,207.07,4.03942434]
[1756460040405,0.03285411,207.09,207.03,5.38458314]
[1756460040406,7.44,207.07,207.03,5.38458314]
[1756460040603,7.44,207.04,206.94,8.08284797]
[1756460040809,7.44,206.95,206.92,8.08284797]
[1756460041005,7.44,207.11,206.92,7.71]
[1756460041208,7.96519522,207.19,206.93,15.79284797]
[1756460041209,7.18272833,207.02,206.93,15.79284797]
[1756460041506,0.03346675,206.96,206.93,7.71]
[1756460041705,17.12,207.05,206.95,8.08284797]
[1756460041904,17.12,207.05,206.96,7.71]
[1756460042207,11.98222823,207.06,206.96,7.71]
[1756460042404,87.34222823,207.06,206.96,8.08284797]
[1756460042605,11.98222823,207.06,206.97,7.71]
[1756460043406,7.44,207.05,206.99,0.03083967]
[1756460043701,11.98222823,207.02,206.92,7.71]
[1756460043905,11.98222823,206.98,206.88,7.71]
[1756460044106,28.7,206.97,206.88,7.71]
[1756460044408,7.44,206.96,206.88,7.71]
[1756460045207,0.03166343,206.94,206.88,7.71]
[1756460045605,0.03166343,206.94,206.88,8.08284797]
[1756460045800,0.03166343,206.94,206.89,7.71]
[1756460046003,0.03166343,206.94,206.9,7.71]
[1756460046613,0.03166343,206.94,206.9,7.67]
[1756460046813,0.03166343,206.94,206.88,7.67]
[1756460052723,0.03166343,206.94,206.83,7.67]
[1756460053118,19.15222823,206.95,206.83,7.67]
[1756460053313,11.98222823,206.91,206.79,0.17013]
[1756460053514,7.17,206.9,206.79,7.84013]
[1756460054317,0.03466555,206.87,206.79,7.84013]
[1756460054722,0.03466555,206.87,206.79,0.17013]
[1756460054922,7.17,206.86,206.79,0.17013]
[1756460062120,0.03466555,206.87,206.79,7.84013]
[1756460071036,0.03466555,206.87,206.79,62.17013]
[1756460071232,0.03466555,206.87,206.8,7.67]
[1756460074737,0.03466555,206.87,206.82,7.67]
[1756460074938,0.03466555,206.87,206.81,62.0]
[1756460075535,0.03466555,206.87,206.81,7.67]
[1756460080636,7.48,206.86,206.79,0.17013]
[1756460082735,12.03247972,206.87,206.79,0.17013]
[1756460082736,11.99781417,206.83,206.79,0.17013]
[1756460082939,7.48,206.82,206.79,0.17013]
[1756460083138,0.03466555,206.87,206.79,0.17013]
[1756460083437,11.99781417,206.85,206.79,0.17013]
[1756460083642,7.48,206.84,206.79,0.17013]
[1756460083843,7.48,206.8,206.69,13.03547933]
[1756460084045,7.48,206.8,206.69,7.68]
[1756460084249,7.48,206.8,206.69,13.03547933]
[1756460084538,0.03613021,206.77,206.69,13.03547933]
[1756460084735,7.48,206.76,206.69,7.68]
[1756460085839,0.03613021,206.77,206.69,7.68]
[1756460086045,0.03613021,206.77,206.69,13.03547933]
[1756460087141,0.03613021,206.77,206.74,7.68]
[1756460087340,0.03613021,206.77,206.74,13.03547933]
[1756460087549,67.32,206.87,206.77,7.68]
[1756460087734,67.32,206.87,206.77,13.07176621]
[1756460088545,67.32,206.87,206.78,5.39176621]
[1756460088745,67.32,206.87,206.8,0.03331093]
[1756460090345,7.48,206.86,206.8,0.03331093]
[1756460091441,130.82,206.91,206.81,7.68]
[1756460092247,130.82,206.91,206.84,0.03624539]
[1756460093947,12.00101556,206.9,206.84,0.03624539]
[1756460094247,7.48,206.89,206.84,0.03624539]
[1756460094647,12.00101556,206.9,206.84,0.03624539]
[1756460094846,7.48,206.89,206.84,0.03624539]
[1756460095248,12.00101556,206.9,206.84,0.03624539]
[1756460095548,7.48,206.89,206.84,0.03624539]
[1756460095743,12.00101556,206.9,206.84,0.03624539]
[1756460096140,7.48,206.89,206.84,0.03624539]
[1756460096448,123.3,206.88,206.84,0.03624539]
[1756460096845,7.48,206.87,206.84,0.03624539]
[1756460097049,123.3,206.88,206.84,0.03624539]
[1756460097250,12.00101556,206.9,206.84,0.03624539]
[1756460097450,7.48,206.88,206.84,0.03624539]
[1756460098154,123.28,206.9,206.84,0.03624539]
[1756460098554,7.48,206.89,206.84,0.03624539]
[1756460098756,130.76,206.9,206.84,0.03624539]
[1756460100047,7.48,206.9,206.84,0.03624539]
[1756460100255,114.38,206.95,206.85,13.07176621]
[1756460100555,106.9,206.94,206.89,4.05416891]
[1756460100756,106.9,206.94,206.89,11.73416891]
[1756460101153,106.9,206.94,206.89,11.76948708]
[1756460101548,114.38,206.94,206.89,11.76948708]
[1756460101956,7.48,207.03,206.91,4.05416891]
[1756460102156,7.48,207.03,206.96,4.05416891]
[1756460102556,7.48,207.03,206.97,4.05416891]
[1756460102758,7.48,207.03,206.97,0.03482099]
[1756460103458,12.00101556,207.01,206.97,0.03482099]
[1756460103652,7.48,206.99,206.97,0.03482099]
[1756460103858,123.24,207.0,206.97,0.03482099]
[1756460104362,7.48,206.99,206.97,0.03482099]
[1756460106361,123.24,207.0,206.97,0.03482099]
[1756460106664,123.22,207.03,206.97,0.03482099]
[1756460106858,123.22,207.03,206.97,4.0889899]
[1756460107362,7.75,207.02,206.97,0.03482099]
[1756460107559,123.22,207.03,206.97,0.03482099]
[1756460108061,7.75,207.02,206.97,0.03482099]
[1756460108370,123.22,207.03,206.97,0.03482099]
[1756460108658,12.00101556,207.01,206.97,0.03482099]
[1756460108864,7.75,207.0,206.97,0.03482099]
[1756460109470,12.00101556,207.01,206.97,0.03482099]
[1756460109664,7.75,207.0,206.97,0.03482099]
[1756460109871,7.75,207.0,206.89,4.05416891]
[1756460110571,7.75,206.96,206.87,4.05416891]
[1756460110771,113.14,206.95,206.86,4.05416891]
[1756460111171,7.75,206.92,206.86,4.05416891]
[1756460111368,7.19880526,206.89,206.86,4.05416891]
[1756460111573,7.19880526,206.89,206.85,7.95]
[1756460112174,7.2316217,206.89,206.84,4.05416891]
[1756460112468,7.75,206.88,206.82,4.05416891]
[1756460112668,7.19880526,206.86,206.82,4.05416891]
[1756460112869,51.09281644,206.89,206.83,12.00416891]
[1756460113067,51.09281644,206.89,206.84,12.00416891]
[1756460113263,51.06,206.89,206.84,12.00416891]
[1756460113573,51.09705969,206.89,206.84,12.00416891]
[1756460114268,0.03705969,206.89,206.84,4.05416891]
[1756460114468,0.03705969,206.89,206.82,4.05416891]
[1756460114973,7.75,206.91,206.83,4.05416891]
[1756460115169,0.03716379,206.88,206.83,4.05416891]
[1756460115372,0.03716379,206.88,206.85,7.95]
[1756460116370,0.03716379,206.88,206.84,4.05416891]
[1756460116669,0.03716379,206.88,206.83,12.00416891]
[1756460116971,7.75,206.87,206.81,4.05416891]
[1756460117175,0.03716379,206.88,206.82,4.05416891]
[1756460117673,0.03716379,206.88,206.83,4.05416891]
[1756460117875,0.03716379,206.88,206.84,7.95]
[1756460118674,0.03716379,206.88,206.84,12.00416891]
[1756460119377,0.03716379,206.88,206.84,4.05416891]
[1756460119579,0.03716379,206.88,206.85,7.95]
[1756460119775,0.03716379,206.88,206.84,4.05416891]
[1756460119978,0.03716379,206.88,206.85,7.95]
[1756460120968,0.03716379,206.88,206.83,4.05416891]
[1756460121175,7.78716379,206.88,206.83,12.00416891]
[1756460122373,0.03716379,206.88,206.84,4.05416891]
[1756460122575,0.03716379,206.88,206.86,4.05416891]
[1756460122776,48.15,206.99,206.87,7.95]
[1756460122980,48.15,206.99,206.88,4.04004295]
[1756460123182,48.15,206.99,206.87,11.99004295]
[1756460123383,48.15,206.99,206.88,4.04004295]
[1756460123782,7.75,206.99,206.89,11.99004295]
[1756460124082,7.75,206.99,206.91,0.03557931]
[1756460124581,7.75,206.99,206.91,4.07562226]
[1756460125180,19.7469627,206.99,206.91,0.03557931]
[1756460125680,7.75,206.99,206.91,0.03557931]
[1756460126278,19.7469627,206.99,206.91,0.03557931]
[1756460126579,11.9969627,206.95,206.91,0.03557931]
[1756460126779,22.24,206.99,206.81,8.08284797]
[1756460126780,7.75,206.9,206.81,4.04004295]
[1756460126981,7.75,206.9,206.83,4.04004295]
[1756460127179,7.75,206.9,206.82,4.04004295]
[1756460127675,14.49,206.99,206.84,11.99004295]
[1756460127676,123.12,206.96,206.84,11.99004295]
[1756460127879,123.12,206.96,206.87,4.04004295]
[1756460128083,0.03602673,206.88,206.87,11.99004295]
[1756460128285,123.12,206.96,206.87,11.99004295]
[1756460128586,0.03052146,206.9,206.87,7.95]
[1756460129274,0.03052146,206.9,206.87,11.99004295]
[1756460129474,0.03052146,206.9,206.87,7.95]
[1756460130280,0.03052146,206.9,206.87,4.04004295]
[1756460130676,7.75,206.89,206.86,4.04004295]
[1756460130873,7.75,206.89,206.84,11.99004295]
[1756460131781,7.78052146,206.9,206.84,4.04004295]
[1756460132379,7.78052146,206.9,206.85,11.99004295]
[1756460132581,0.03052146,206.9,206.86,7.95]
[1756460132783,58.38,206.94,206.86,7.95]
[1756460132983,58.38,206.94,206.85,4.04004295]
[1756460133185,7.78115512,206.9,206.86,4.04004295]
[1756460133388,0.03115512,206.9,206.87,7.95]
[1756460133689,0.03115512,206.9,206.86,4.04004295]
[1756460134381,0.03115512,206.9,206.87,11.99004295]
[1756460135288,0.03115512,206.9,206.87,4.04004295]
[1756460135489,7.78115512,206.9,206.86,4.04004295]
[1756460135890,0.03115512,206.9,206.86,4.04004295]
[1756460136084,0.03115512,206.9,206.89,4.04004295]
[1756460136283,0.03115512,206.9,206.87,7.95]
[1756460136284,0.03115512,206.9,206.88,4.05067869]
[1756460136493,7.75,206.95,206.88,4.05067869]
[1756460136887,7.41,206.9,206.84,9.4424449]
[1756460137085,7.41,206.9,206.84,4.05067869]
[1756460137390,7.41,206.88,206.82,4.05067869]
[1756460138184,7.41,206.88,206.81,4.05067869]
[1756460138692,11.9969627,206.85,206.78,4.05067869]
[1756460138994,7.41,206.84,206.78,4.05067869]
[1756460139386,7.41,206.8,206.75,5.39176621]
[1756460139588,7.41,206.8,206.69,5.39176621]
[1756460140091,0.03667206,206.77,206.68,13.16176621]
[1756460140891,7.44667206,206.77,206.68,13.16176621]
[1756460142796,0.03667206,206.77,206.69,13.16176621]
[1756460142983,0.03667206,206.77,206.66,8.08284797]
[1756460142984,0.03667206,206.77,206.71,7.77]
[1756460143186,7.41,206.85,206.71,5.39176621]
[1756460143390,7.41,206.85,206.72,13.16176621]
[1756460143590,0.03164442,206.76,206.72,5.39176621]
[1756460143891,11.9969627,206.83,206.73,7.77]
[1756460144286,0.03353919,206.76,206.72,7.77]
[1756460144487,0.03353919,206.76,206.71,5.39176621]
[1756460144691,7.41,206.85,206.72,7.77]
[1756460144889,7.41,206.85,206.72,5.39176621]
[1756460145096,0.03436361,206.76,206.74,7.77]
[1756460145290,0.03436361,206.76,206.73,5.39176621]
[1756460145490,7.41,206.85,206.74,7.77]
[1756460145689,0.03379513,206.77,206.73,5.39176621]
[1756460145891,0.03379513,206.77,206.74,7.77]
[1756460146093,7.41,206.85,206.74,7.77]
[1756460146391,0.03111434,206.78,206.72,5.39176621]
[1756460146584,0.03111434,206.78,206.7,13.16176621]
[1756460146784,0.03111434,206.78,206.71,5.39176621]
[1756460146989,0.03111434,206.78,206.72,7.77]
[1756460147890,0.03111434,206.78,206.72,13.16176621]
[1756460148084,0.03111434,206.78,206.73,13.16176621]
[1756460148289,0.03111434,206.78,206.74,7.77]
[1756460148496,0.03111434,206.78,206.75,5.39176621]
[1756460148690,0.03111434,206.78,206.77,7.77]
[1756460149193,324.78,206.88,206.77,13.16176621]
[1756460149592,19.4069627,206.87,206.77,7.77]
[1756460150591,19.4069627,206.87,206.8,0.03231011]
[1756460151188,7.41,206.82,206.8,0.03231011]
[1756460151388,11.9969627,206.83,206.8,0.03231011]
[1756460151593,7.41,206.82,206.8,0.03231011]
[1756460152191,11.9969627,206.87,206.8,0.03231011]
[1756460152393,7.41,206.86,206.8,0.03231011]
[1756460152891,130.53,206.86,206.8,0.03231011]
[1756460154295,11.9969627,206.83,206.8,0.03231011]
[1756460154594,7.41,206.78,206.7,5.39176621]
[1756460154795,7.41,206.78,206.69,5.39176621]
[1756460154991,7.41,206.78,206.7,7.77]
[1756460155592,19.4069627,206.83,206.7,7.77]
[1756460155794,0.03222482,206.76,206.72,7.77]
[1756460155991,0.03222482,206.76,206.71,5.39176621]
[1756460156397,0.03222482,206.76,206.72,7.77]
[1756460157900,0.03222482,206.76,206.71,5.39176621]
[1756460158199,7.44222482,206.76,206.7,5.39176621]
[1756460159592,0.03222482,206.76,206.71,7.77]
[1756460159796,0.03222482,206.76,206.71,5.39176621]
[1756460160299,0.03222482,206.76,206.72,7.77]
[1756460160698,0.03222482,206.76,206.7,5.39176621]
[1756460160996,0.03222482,206.76,206.68,5.39176621]
[1756460161302,7.41,206.77,206.67,13.16176621]
[1756460161495,0.03638967,206.74,206.67,13.16176621]
[1756460161692,0.03638967,206.74,206.68,13.16176621]
[1756460161991,0.03638967,206.74,206.7,5.39176621]
[1756460162196,42.31,206.82,206.68,5.39176621]
[1756460162197,11.9969627,206.79,206.68,5.39176621]
[1756460162398,0.03419756,206.74,206.67,5.39176621]
[1756460162801,0.03419756,206.74,206.68,5.39176621]
[1756460163004,0.03419756,206.74,206.68,7.77]
[1756460163198,0.03419756,206.74,206.68,13.16176621]
[1756460164598,0.03419756,206.74,206.68,7.77]
[1756460164801,0.03419756,206.74,206.67,5.39176621]
[1756460165001,0.03419756,206.74,206.66,5.39176621]
[1756460165606,0.03419756,206.74,206.67,7.77]
[1756460166000,7.41,206.75,206.67,7.77]
[1756460166505,0.03429874,206.73,206.67,7.77]
[1756460167101,7.7,206.72,206.64,5.39176621]
[1756460167302,7.7,206.7,206.59,5.39176621]
[1756460167499,7.7,206.7,206.56,12.72176621]
[1756460167699,34.9,206.69,206.56,12.72176621]
[1756460167904,34.9,206.69,206.57,5.39176621]
[1756460168099,34.9,206.69,206.58,5.39176621]
[1756460168308,0.03302588,206.65,206.58,7.33]
[1756460169108,0.03302588,206.65,206.58,12.72176621]
[1756460169601,0.03302588,206.65,206.58,7.33]
[1756460171709,0.03302588,206.65,206.58,12.72176621]
[1756460172204,0.03302588,206.65,206.58,7.33]
[1756460172507,0.03302588,206.65,206.55,12.72176621]
[1756460172908,7.7,206.66,206.55,12.72176621]
[1756460173110,11.9969627,206.68,206.55,12.72176621]
[1756460173406,0.03635849,206.62,206.55,7.33]
[1756460173603,7.7,206.61,206.52,5.39176621]
[1756460173805,7.7,206.61,206.49,7.33]
[1756460174605,0.03480152,206.57,206.49,7.33]
[1756460175507,0.03480152,206.57,206.45,25.65176621]
[1756460175508,7.73480152,206.57,206.45,7.33]
[1756460176105,7.73480152,206.57,206.42,5.39176621]
[1756460176106,7.7,206.54,206.42,5.39176621]
[1756460176310,7.7,206.54,206.4,7.33]
[1756460176906,0.03466932,206.49,206.4,24.71872891]
[1756460177211,0.03466932,206.49,206.45,7.33]
[1756460177708,7.7,206.58,206.45,7.33]
[1756460178109,0.03665733,206.49,206.45,7.33]
[1756460178310,2.58,206.62,206.44,16.3561627]
[1756460178311,2.58,206.62,206.5,7.33]
[1756460179317,7.7,206.61,206.5,7.33]
[1756460179712,7.7,206.61,206.54,0.03451015]
[1756460180317,19.6969627,206.61,206.54,0.03451015]
[1756460181408,0.48,206.6,206.54,0.03451015]
[1756460181610,7.7,206.59,206.54,0.03451015]
[1756460181917,7.7,206.6,206.54,0.03451015]
[1756460182513,7.7,206.66,206.55,7.33]
[1756460182716,7.7,206.9,206.59,7.33]
[1756460182917,7.7,206.8,206.63,7.33]
[1756460183418,7.7,206.8,206.72,0.03480888]
[1756460184007,7.7,206.8,206.68,7.33]
[1756460184008,7.7,206.72,206.57,12.72176621]
[1756460184214,11.9969627,206.69,206.57,7.33]
[1756460184415,7.7,206.68,206.57,7.33]
[1756460184617,7.7,206.73,206.57,7.33]
[1756460185522,14.5,206.94,206.65,11.9969627]
[1756460185712,7.7,206.91,206.7,7.33]
[1756460185918,7.7,206.91,206.76,7.33]
[1756460186517,19.16,206.96,206.76,7.33]
[1756460186720,19.16,206.96,206.79,7.33]
[1756460187019,19.16,206.96,206.81,0.03064198]
[1756460187222,19.16,206.96,206.79,7.33]
[1756460187621,19.16,206.96,206.86,0.03152705]
[1756460192923,38.0900724,206.96,206.86,0.03152705]
[1756460194020,52.5900724,206.96,206.86,0.03152705]
[1756460195027,7.7,206.9,206.86,0.03152705]
[1756460196119,18.9300724,206.91,206.86,0.03152705]
[1756460196426,7.22,206.9,206.86,0.03152705]
[1756460196627,7.25550516,206.9,206.77,7.33]
[1756460196823,7.25550516,206.9,206.69,7.36]
[1756460197023,18.9300724,206.86,206.69,7.36]
[1756460197219,7.22,206.84,206.69,7.36]
[1756460197825,0.03208097,206.79,206.69,7.36]
[1756460198827,0.03208097,206.79,206.6,5.39176621]
[1756460198828,7.22,206.78,206.6,7.36]
[1756460199131,0.03208097,206.79,206.6,7.36]
[1756460199327,2.9,206.8,206.6,7.36]
[1756460199526,2.9,206.8,206.63,7.36]
[1756460199728,0.03405441,206.72,206.63,7.36]
[1756460199923,7.22,206.82,206.63,7.36]
[1756460200125,15.04,206.86,206.66,7.36]
[1756460200630,7.22,206.85,206.67,7.36]
[1756460201427,7.22,206.85,206.74,0.03566032]
[1756460201627,18.9300724,206.84,206.74,0.03566032]